bitfinex/quotes_ETHUSD_20250329
["timestamp","ask_amount","ask_price","bid_price","bid_amount"]
[1743271881393,6.04011,1821.5,1821.1,5.49105]
[1743271881621,6.04011,1821.5,1821.1,5.49103]
[1743271882219,5.49071,1821.3,1820.9,5.49161]
[1743271882441,5.49094,1821.2,1820.8,11.70081]
[1743271882724,6.87158625,1821.4,1820.8,6.209]
[1743271882907,5.69496,1821.4,1821.0,5.49129]
[1743271883294,5.49062,1821.3,1820.9,5.49178]
[1743271883492,6.42684063,1821.3,1820.9,5.49178]
[1743271883687,5.49104,1821.2,1820.8,11.70094]
[1743271883889,5.69619,1821.0,1820.6,10.98521]
[1743271884202,0.2046,1821.0,1820.7,5.49215]
[1743271884525,3.66698625,1821.2,1820.9,5.49178]
[1743271884723,0.2046,1821.2,1821.0,5.49139]
[1743271885025,0.2046,1821.2,1820.9,5.49178]
[1743271885192,5.69549,1821.2,1820.9,5.49178]
[1743271885723,6.265039,1821.2,1820.8,5.49197]
[1743271885920,6.265039,1821.2,1820.8,10.98386]
[1743271886218,5.49134,1821.1,1820.7,5.49213]
[1743271886427,0.55,1821.1,1820.8,5.49188]
[1743271886726,0.55,1821.1,1820.9,5.49164]
[1743271887097,5.69551,1821.2,1820.9,5.49164]
[1743271887301,0.2046,1821.2,1820.9,5.49164]
[1743271887500,5.4921,1820.8,1820.5,5.49286]
[1743271888136,5.4921,1820.8,1820.3,13.14529]
[1743271888137,5.4925,1820.7,1820.3,13.14529]
[1743271888300,5.49292,1820.6,1820.3,6.209]
[1743271889628,9.61217,1820.7,1820.3,11.70258]
[1743271889828,4.11971,1820.7,1820.3,6.209]
[1743271890018,5.49282,1820.6,1820.3,6.209]
[1743271890215,5.49318,1820.5,1820.1,5.49412]
[1743271890621,10.98644,1820.5,1820.1,5.49412]
[1743271890824,6.646824,1820.5,1820.1,10.98824]
[1743271891002,6.646824,1820.5,1820.1,5.49408]
[1743271891202,6.646824,1820.5,1820.0,18.63951]
[1743271891500,5.49343,1820.4,1820.0,13.14503]
[1743271891915,6.10574961,1820.4,1820.0,5.49423]
[1743271892111,6.31034961,1820.4,1820.1,5.4942]
[1743271892318,5.70721815,1820.3,1819.9,11.70258]
[1743271892711,11.20102815,1820.3,1819.9,5.49458]
[1743271892912,5.49425,1820.1,1819.8,5.49507]
[1743271893113,5.70723815,1820.3,1819.9,5.49468]
[1743271893329,0.2131429,1820.0,1819.9,11.538758]
[1743271893629,9.70989625,1820.6,1820.2,5.4937]
[1743271893630,3.55,1820.6,1820.2,5.4937]
[1743271893817,0.55,1820.6,1820.3,5.49344]
[1743271894213,6.04272,1820.6,1820.2,5.4937]
[1743271894398,11.53559,1820.6,1820.2,5.4937]
[1743271894604,5.4931,1820.5,1820.1,10.98821]
[1743271895040,5.49577,1819.6,1819.4,1.08385291]
[1743271895205,5.49594,1819.6,1819.1,5.49711]
[1743271895535,10.99178,1819.6,1819.1,10.99416]
[1743271895832,5.49608,1819.5,1819.1,5.49705]
[1743271896132,10.99239,1819.5,1819.0,11.70651]
[1743271896427,10.99239,1819.5,1819.0,5.49726]
[1743271896428,0.2046,1819.4,1819.0,5.49726]
[1743271896612,8.49593,1819.6,1819.1,1.4777]
[1743271896811,8.49593,1819.6,1819.2,5.49691]
[1743271897129,8.49593,1819.6,1819.1,6.97468]
[1743271897330,5.49618,1819.5,1819.1,6.97479]
[1743271897737,5.49618,1819.5,1819.1,12.47175]
[1743271897935,5.49618,1819.5,1819.1,6.97466]
[1743271898636,13.99165,1819.6,1819.2,5.49667]
[1743271898938,3.2046,1819.7,1819.3,10.99292]
[1743271899133,9.16129625,1820.1,1819.9,5.4948]
[1743271899134,0.2046,1820.1,1819.9,5.4948]
[1743271899440,5.49401,1820.2,1819.8,5.49508]
[1743271899607,5.49401,1820.2,1819.8,5.49493]
[1743271899936,5.49401,1820.2,1819.8,5.49489]
[1743271900132,9.36519625,1820.3,1819.7,6.21]
[1743271900133,5.49436,1820.1,1819.7,11.70532]
[1743271900324,9.16134625,1820.1,1819.7,11.70532]
[1743271900625,9.16134625,1820.1,1819.7,11.7052]
[1743271901220,9.16134625,1820.1,1819.7,11.70517]
[1743271901418,5.49452,1820.0,1819.7,6.21]
[1743271901614,9.16134625,1820.1,1819.7,11.70528]
[1743271902337,9.16134625,1820.1,1819.7,11.65528]
[1743271903029,9.16134625,1820.1,1819.7,17.15049]
[1743271903226,9.16013625,1820.5,1820.1,5.49417]
[1743271903457,5.49315,1820.5,1820.1,5.49409]
[1743271903756,10.98641,1820.5,1820.1,5.49409]
[1743271903954,5.49331,1820.4,1820.0,5.49447]
[1743271904456,5.49315,1820.5,1820.1,5.494]
[1743271904627,5.49305,1820.5,1820.1,5.49412]
[1743271904830,10.98626,1820.5,1820.1,5.49412]
[1743271905137,5.49305,1820.5,1820.1,5.49412]
[1743271905547,5.49334,1820.4,1820.1,5.49412]
[1743271905752,5.49305,1820.5,1820.1,10.98812]
[1743271906126,9.36428625,1820.6,1820.2,5.49386]
[1743271906328,9.36428625,1820.6,1820.3,5.49359]
[1743271906531,9.36428625,1820.6,1820.2,5.49386]
[1743271907034,0.19202347,1820.5,1820.4,5.49319]
[1743271907340,14.85608625,1820.8,1820.2,8.819206]
[1743271907341,5.4925,1820.7,1820.2,14.313016]
[1743271907542,0.19202347,1820.5,1820.2,14.313016]
[1743271907713,5.68580063,1820.6,1820.2,14.313016]
[1743271907912,5.49284,1820.6,1820.3,5.49359]
[1743271908116,5.49284,1820.6,1820.2,14.313016]
[1743271908117,5.68613063,1820.5,1820.2,6.207]
[1743271908354,5.69802,1820.4,1820.0,5.49448]
[1743271908563,3.66698625,1820.2,1819.8,5.49491]
[1743271908863,0.19310858,1820.1,1819.8,5.49491]
[1743271909161,0.19310858,1820.1,1819.8,10.98985]
[1743271909322,0.19310858,1820.1,1819.9,5.4948]
[1743271911039,0.19310858,1820.1,1819.9,5.49468]
[1743271911244,0.19310858,1820.1,1819.9,10.98936]
[1743271911440,3.0,1820.3,1820.0,5.4945]
[1743271911744,0.19310858,1820.2,1820.0,5.4945]
[1743271913254,0.19310858,1820.2,1819.9,5.49468]
[1743271913461,0.19310858,1820.2,1819.9,5.49464]
[1743271913834,0.19310858,1820.2,1819.9,5.49462]
[1743271914143,0.19310858,1820.2,1820.0,5.49442]
[1743271914345,0.19310858,1820.2,1820.1,5.4942]
[1743271914841,3.61565283,1820.4,1820.1,5.4942]
[1743271915340,0.19399667,1820.3,1820.1,5.4942]
[1743271915548,0.19399667,1820.3,1820.1,10.98826]
[1743271915853,0.19399667,1820.3,1820.1,5.49406]
[1743271916240,0.19399667,1820.3,1820.1,10.98811]
[1743271916433,0.19399667,1820.3,1820.2,5.4939]
[1743271916621,0.19399667,1820.3,1820.1,5.49405]
[1743271917955,0.19399667,1820.3,1820.2,5.4939]
[1743271918255,0.19399667,1820.3,1820.1,10.98814]
[1743271918755,0.19399667,1820.3,1820.1,10.98809]
[1743271918953,0.19399667,1820.3,1820.2,5.4939]
[1743271919729,0.19399667,1820.3,1820.1,5.49402]
[1743271921626,0.19399667,1820.3,1820.2,6.994]
[1743271921861,0.62454684,1820.6,1820.3,5.49349]
[1743271922061,3.62454684,1820.6,1820.3,5.49349]
[1743271922267,0.18668377,1820.5,1820.3,5.49349]
[1743271923169,0.18668377,1820.5,1820.2,6.994]
[1743271923468,5.67980377,1820.5,1820.1,10.98836]
[1743271923632,7.15951583,1820.5,1820.1,10.98827]
[1743271923826,7.15951583,1820.5,1819.8,5.49492]
[1743271923827,10.406343,1820.1,1819.8,1.5001]
[1743271924049,5.69609,1820.2,1819.8,5.495]
[1743271924249,0.18875535,1820.0,1819.8,10.98991]
[1743271924448,5.69609,1820.2,1819.9,5.49478]
[1743271924669,6.55205155,1820.2,1819.9,5.49478]
[1743271924887,6.55205155,1820.2,1819.8,10.98982]
[1743271925342,3.202,1820.4,1820.1,5.4942]
[1743271925528,0.62454684,1820.6,1820.5,5.49299]
[1743271925728,0.202,1820.8,1820.7,5.49239]
[1743271925951,2.76523252,1820.9,1820.8,5.49209]
[1743271926334,1.22833012,1820.9,1820.7,5.49239]
[1743271926546,1.22833012,1820.9,1820.7,10.98458]
[1743271926799,1.22833012,1820.9,1820.8,5.49209]
[1743271927245,0.202,1821.2,1820.9,5.49171]
[1743271927446,0.202,1821.2,1821.0,5.49146]
[1743271927973,0.202,1821.2,1820.9,5.49159]
[1743271928346,3.202,1821.2,1820.9,5.49159]
[1743271928644,3.202,1821.2,1820.9,5.49158]
[1743271928846,0.202,1821.5,1821.1,5.49118]
[1743271929046,0.202,1821.5,1821.2,5.49067]
[1743271929293,5.69209,1821.5,1821.1,5.49112]
[1743271929577,3.0,1821.4,1821.2,5.49083]
[1743271929756,0.202,1821.5,1821.3,5.49058]
[1743271929953,0.58889863,1821.5,1821.3,5.49058]
[1743271930158,0.58889863,1821.5,1821.2,5.49072]
[1743271930358,3.58889863,1821.5,1821.2,10.9814]
[1743271930771,0.58889863,1821.5,1821.2,10.98133]
[1743271931286,0.58889863,1821.5,1821.3,5.49058]
[1743271931948,0.58889863,1821.5,1821.2,5.49065]
[1743271932352,0.202,1821.5,1821.2,10.98141]
[1743271932552,0.202,1821.5,1821.3,5.49054]
[1743271932753,3.0,1821.6,1821.3,5.49054]
[1743271932949,3.0,1821.6,1821.3,10.98091]
[1743271933151,0.202,1822.0,1821.4,0.05490398]
[1743271933383,1.23190867,1822.1,1821.9,5.48858]
[1743271933571,1.23190867,1822.1,1822.0,5.48847]
[1743271933761,0.202,1822.3,1822.0,5.48847]
[1743271934155,0.202,1822.5,1821.8,6.199]
[1743271934352,0.202,1822.5,1822.1,5.48788]
[1743271934579,0.770882,1822.5,1822.1,5.48788]
[1743271934773,0.770882,1822.5,1822.2,5.48784]
[1743271935061,6.257852,1822.5,1822.2,5.48784]
[1743271935273,0.770882,1822.5,1822.2,5.48784]
[1743271935467,5.48638,1822.7,1821.9,1.5432]
[1743271935468,0.202,1822.7,1821.9,1.5432]
[1743271935673,0.202,1822.7,1822.4,5.48725]
[1743271935868,3.202,1822.7,1822.4,5.48725]
[1743271936074,0.202,1822.7,1822.4,5.48725]
[1743271936459,0.202,1823.0,1822.6,5.4866]
[1743271936655,0.770733,1823.0,1822.6,5.48646]
[1743271936883,0.1296148,1822.9,1822.7,5.48636]
[1743271937208,0.1296148,1822.9,1822.8,5.48606]
[1743271937499,0.202,1823.3,1823.1,5.48502]
[1743271937663,0.1296148,1823.2,1823.1,5.48502]
[1743271937857,6.70731825,1823.5,1823.1,5.48502]
[1743271938074,3.12083634,1823.4,1823.1,5.48502]
[1743271938274,3.12083634,1823.4,1823.1,10.97004]
[1743271938474,0.12083634,1823.4,1823.1,10.97004]
[1743271938674,0.12083634,1823.4,1823.1,5.48502]
[1743271938891,3.12083634,1823.4,1823.1,5.48502]
[1743271939065,0.12083634,1823.4,1823.2,5.4847]
[1743271939263,0.12083634,1823.4,1823.2,10.96938]
[1743271939463,0.61183899,1823.6,1823.3,5.48456]
[1743271939770,0.1221186,1823.5,1823.3,5.48456]
[1743271940289,0.1221186,1823.5,1823.4,5.48426]
[1743271940510,5.48438,1823.4,1822.8,5.48606]
[1743271940703,3.12256238,1823.3,1823.0,6.194]
[1743271940901,3.12256238,1823.3,1823.0,11.67944]
[1743271941066,3.98325662,1823.3,1823.0,6.194]
[1743271941463,3.98325662,1823.3,1823.0,11.67942]
[1743271941662,3.12256238,1823.3,1823.0,11.67942]
[1743271942378,3.12256238,1823.3,1823.0,17.16468]
[1743271942965,3.12256238,1823.3,1823.0,11.67926]
[1743271943906,0.12256238,1823.3,1823.1,5.48513]
[1743271944110,5.48336,1823.7,1823.3,5.48441]
[1743271944325,0.12206929,1823.6,1823.4,5.4841]
[1743271944473,8.68785,1823.8,1823.3,5.48447]
[1743271944674,6.47421429,1823.7,1823.3,5.48447]
[1743271945299,11.95776429,1823.7,1823.3,5.48437]
[1743271945597,6.47421429,1823.7,1823.3,10.96876]
[1743271946094,0.12206929,1823.7,1823.4,5.48422]
[1743271946296,0.12206929,1823.7,1823.5,5.48392]
[1743271946497,0.12206929,1823.7,1823.6,5.48365]
[1743271946795,5.68707,1824.0,1823.6,5.48347]
[1743271946796,0.2046,1824.0,1823.6,5.48347]
[1743271947001,0.12853084,1823.7,1823.6,5.48347]
[1743271947201,5.68709,1824.0,1823.6,5.48347]
[1743271947367,0.12853084,1823.7,1823.6,5.48347]
[1743271947569,10.96462,1824.1,1823.7,5.48325]
[1743271947889,5.48217,1824.1,1823.7,5.48325]
[1743271948202,0.2046,1824.2,1823.5,13.25223]
[1743271948364,5.48162,1824.3,1823.9,10.96515]
[1743271948564,5.4809,1824.6,1824.0,7.82312448]
[1743271948565,5.48069,1824.6,1824.0,7.82312448]
[1743271948796,5.4811,1824.5,1824.1,12.45217245]
[1743271949005,5.48129,1824.4,1824.0,7.06274]
[1743271949299,5.4811,1824.5,1824.0,7.06249]
[1743271949469,10.96229,1824.5,1824.0,7.06249]
[1743271949668,3.0,1824.5,1824.1,5.48193]
[1743271950001,10.96231,1824.5,1824.1,5.48193]
[1743271950395,3.0,1824.4,1824.1,5.48193]
[1743271950598,19.378303,1824.3,1823.7,7.7653]
[1743271950798,19.378303,1824.3,1823.7,13.24841]
[1743271950799,3.0,1824.1,1823.7,13.24841]
[1743271952021,5.48279,1823.9,1823.4,7.06454]
[1743271952313,3.0,1823.6,1823.2,7.06499]
[1743271952498,0.1310444,1823.5,1823.3,5.48442]
[1743271953308,0.1310444,1823.5,1823.3,10.96877]
[1743271953478,3.0,1823.6,1823.3,5.48435]
[1743271953674,0.12922098,1823.5,1823.4,5.4842]
[1743271953912,9.236039,1823.8,1823.4,5.4842]
[1743271954182,0.12922098,1823.7,1823.6,7.06384]
[1743271954375,0.12922098,1823.7,1823.6,13.24784]
[1743271954590,3.0,1824.0,1823.7,5.48329]
[1743271955009,0.12867874,1823.9,1823.7,5.48329]
[1743271955409,5.68633,1824.3,1823.8,5.483]
[1743271955578,5.68633,1824.3,1823.7,1.873122]
[1743271955579,0.2046,1824.3,1823.7,1.873122]
[1743271955782,12.14928625,1824.1,1823.5,5.4837]
[1743271956112,5.48258,1824.0,1823.6,5.4836]
[1743271956898,5.48282,1823.9,1823.5,5.48366]
[1743271957099,5.48347,1823.7,1823.4,6.183]
[1743271957296,5.48332,1823.8,1823.4,11.66713]
[1743271957496,3.7546,1823.9,1823.4,6.183]
[1743271957696,6.61298,1823.9,1823.5,5.48377]
[1743271957906,6.61298,1823.9,1823.4,6.183]
[1743271957907,5.48319,1823.8,1823.4,11.66725]
[1743271958210,6.61295,1823.9,1823.4,11.6671]
[1743271958510,8.68749,1823.9,1823.4,11.66713]
[1743271958703,5.48325,1823.8,1823.4,11.66713]
[1743271958904,5.48355,1823.7,1823.4,6.183]
[1743271959105,3.0,1823.6,1823.2,7.03535]
[1743271959305,13.96774,1823.6,1823.2,13.21735]
[1743271960113,8.48383,1823.6,1823.2,13.21735]
[1743271960413,8.48383,1823.6,1823.2,6.182]
[1743271960594,5.48407,1823.5,1823.2,6.182]
[1743271961511,9.332213,1823.6,1823.2,11.66684]
[1743271961722,3.0,1823.6,1823.3,5.48435]
[1743271962013,8.48342,1823.7,1823.2,17.15115]
[1743271962513,5.4838,1823.6,1823.2,11.66656]
[1743271962886,5.4838,1823.6,1823.2,17.15126]
[1743271963514,8.48338,1823.7,1823.3,5.48433]
[1743271963716,3.7546,1823.9,1823.6,5.48365]
[1743271964008,0.4170057,1824.0,1823.5,5.4838]
[1743271964216,5.4827,1824.0,1823.6,5.48356]
[1743271964410,3.0,1823.9,1823.6,5.48356]
[1743271964715,3.0,1823.9,1823.6,10.9671]
[1743271965219,3.0,1823.9,1823.6,5.48354]
[1743271965597,3.0,1823.9,1823.6,5.48351]
[1743271966316,13.54810425,1823.9,1823.2,1.5506]
[1743271966487,5.48428,1823.4,1823.0,13.21495]
[1743271966901,0.1201408,1823.3,1823.0,13.21495]
[1743271967291,5.6048308,1823.3,1823.0,1.5506]
[1743271967507,0.1201408,1823.3,1823.0,1.5506]
[1743271967698,0.1201408,1823.3,1823.0,7.03594]
[1743271967895,5.6048008,1823.3,1823.0,1.5506]
[1743271968099,5.6047108,1823.3,1823.0,7.03586]
[1743271970321,0.1201408,1823.3,1823.0,12.5212]
[1743271970533,0.1201408,1823.3,1823.1,5.48512]
[1743271970692,0.1201408,1823.3,1823.0,8.90588]
[1743271972624,5.6047908,1823.3,1823.0,8.90588]
[1743271972828,5.4849,1823.2,1823.0,1.5506]
[1743271973136,0.11521093,1823.1,1822.8,42.21852]
[1743271973299,10.96996,1823.2,1822.8,6.99952]
[1743271973498,5.60038093,1823.1,1822.8,13.17752]
[1743271973910,11.08573093,1823.1,1822.8,1.5136]
[1743271974113,3.11521093,1823.1,1822.8,6.99942]
[1743271974630,8.60047093,1823.1,1822.8,6.99942]
[1743271976835,3.11521093,1823.1,1822.8,6.99942]
[1743271977330,3.11521093,1823.1,1822.9,0.05485456]
[1743271977331,0.11521093,1823.1,1822.9,0.05485456]
[1743271977534,3.0,1823.5,1823.0,5.48546]
[1743271977755,0.11417523,1823.4,1823.3,5.48454]
[1743271977930,5.6825,1823.7,1823.2,6.177]
[1743271977931,5.4835,1823.7,1823.2,6.177]
[1743271978238,3.11417523,1823.6,1823.3,5.48448]
[1743271978731,5.59784523,1823.6,1823.2,0.6177]
[1743271978932,5.48411,1823.5,1823.2,6.176]
[1743271979108,8.48411,1823.5,1823.2,6.176]
[1743271979305,0.11417523,1823.4,1823.3,5.48443]
[1743271979635,0.11417523,1823.4,1823.3,6.99803]
[1743271979934,0.11417523,1823.4,1823.3,8.863899]
[1743271981434,0.11417523,1823.4,1823.3,3.379469]
[1743271981633,0.11417523,1823.4,1823.3,1.5136]
[1743271984708,0.11417523,1823.4,1823.1,6.99872]
[1743271984934,0.11417523,1823.4,1823.2,6.174]
[1743271985246,5.59852523,1823.4,1823.1,6.174]
[1743271985436,0.11417523,1823.4,1823.2,5.48472]
[1743271985836,0.11417523,1823.4,1823.3,5.48456]
[1743271986039,0.11417523,1823.4,1823.3,6.97036]
[1743271986235,3.0,1823.7,1823.4,5.48412]
[1743271986638,8.48336,1823.7,1823.4,5.48412]
[1743271986806,3.0,1823.7,1823.5,5.48391]
[1743271987011,3.0,1823.8,1823.5,6.07323951]
[1743271987636,5.68081,1824.3,1823.6,7.6588]
[1743271987838,5.68081,1824.3,1824.0,5.48243]
[1743271988018,10.96349,1824.3,1823.9,5.48265]
[1743271988217,5.48238,1824.1,1823.6,6.96921]
[1743271988409,10.9648,1824.1,1823.7,11.6563]
[1743271988805,5.48417,1823.5,1823.2,1.4858]
[1743271989011,5.48456,1823.3,1823.0,1.4858]
[1743271989342,5.48466,1823.3,1822.8,11.65905]
[1743271989549,5.485,1823.2,1822.8,11.65905]
[1743271989847,5.485,1823.2,1822.8,12.20892372]
[1743271990036,5.4846,1823.3,1822.9,5.48562]
[1743271990258,5.48521,1823.1,1822.8,6.72287372]
[1743271990542,5.48521,1823.1,1822.8,6.173]
[1743271990911,5.48458,1823.3,1822.9,5.48552]
[1743271991112,10.96935,1823.3,1822.9,5.48552]
[1743271991314,5.48458,1823.3,1822.8,11.65881]
[1743271991536,5.48458,1823.3,1822.8,12.973271]
[1743271991920,0.1991,1823.5,1822.8,7.487461]
[1743271992124,5.48461,1823.3,1822.9,5.48565]
[1743271992336,5.48461,1823.3,1822.9,10.97122]
[1743271992646,8.48453,1823.4,1823.0,5.48541]
[1743271992815,3.0,1823.4,1823.1,5.48496]
[1743271993019,3.0,1823.4,1823.2,5.48481]
[1743271993219,3.0,1823.4,1823.3,5.48456]
[1743271993543,3.0,1823.4,1823.1,7.519326]
[1743271993748,13.96882,1823.4,1823.1,2.034296]
[1743271994042,8.48441,1823.4,1823.1,1.4858]
[1743271994220,5.48458,1823.3,1822.9,6.97156]
[1743271994651,3.0,1823.4,1823.1,5.48507]
[1743271994839,3.0,1823.4,1823.1,10.97014]
[1743271995039,3.0,1823.5,1823.1,5.48504]
[1743271995234,3.0,1823.5,1823.2,10.96943]
[1743271995429,3.0,1823.5,1823.2,5.4847]
[1743271996343,5.4847,1823.3,1823.0,6.17]
[1743271996923,0.11609849,1823.2,1823.0,11.65531]
[1743271997245,8.48396,1823.5,1823.1,10.97003]
[1743271997434,9.407266,1823.5,1823.1,5.4849]
[1743271997614,3.0,1823.5,1823.1,5.4849]
[1743271997819,3.0,1823.6,1823.2,5.48465]
[1743271998030,3.0,1823.6,1823.3,6.97018]
[1743271998418,5.48418,1823.5,1823.3,1.4858]
[1743271998620,5.48426,1823.4,1823.0,7.6558]
[1743271998844,10.96953,1823.3,1823.0,7.6558]
[1743271999024,5.4849,1823.2,1823.0,6.17]
[1743271999439,0.1991,1823.4,1823.0,11.65533]
[1743271999440,5.68344,1823.4,1823.0,11.65533]
[1743271999646,5.48472,1823.3,1823.0,6.17]
[1743272000045,10.96943,1823.3,1823.0,6.17]
[1743272000234,5.48471,1823.3,1823.0,6.17]
[1743272000435,5.48471,1823.3,1823.0,11.65544]
[1743272000634,5.48423,1823.5,1823.0,7.884103]
[1743272000839,5.48423,1823.5,1823.1,10.96997]
[1743272001348,5.48423,1823.5,1823.0,11.65544]
[1743272001349,5.48432,1823.4,1823.0,11.65544]
[1743272001517,5.48432,1823.4,1823.0,17.1407]
[1743272001923,5.48432,1823.4,1823.1,5.48512]
[1743272002138,8.484,1823.5,1823.1,5.48499]
[1743272002446,3.0,1823.5,1823.2,5.48484]
[1743272002646,8.48417,1823.5,1823.1,6.650489]
[1743272002852,5.48431,1823.4,1823.1,6.650489]
[1743272003447,8.67067047,1823.3,1823.0,6.17]
[1743272003646,5.48493,1823.2,1823.0,6.17]
[1743272005055,8.67062047,1823.3,1823.0,6.17]
[1743272005360,3.18606047,1823.3,1823.1,5.48508]
[1743272005533,8.67074047,1823.3,1823.0,11.65533]
[1743272005735,3.18606047,1823.3,1823.0,11.65533]
[1743272006127,8.67066047,1823.3,1823.0,11.65533]
[1743272006332,3.18606047,1823.3,1823.0,11.65531]
[1743272006534,5.48426,1823.4,1823.0,12.820841]
[1743272007053,10.96871,1823.4,1823.0,12.820801]
[1743272007449,5.48426,1823.4,1823.0,12.820801]
[1743272007628,3.0,1823.4,1823.2,6.9762]
[1743272007827,3.0,1823.4,1823.2,1.4915]
[1743272008729,3.0,1823.4,1823.2,6.97607]
[1743272009237,5.48494,1823.2,1823.0,1.4915]
[1743272009554,5.48494,1823.2,1823.0,7.6575]
[1743272009738,5.48494,1823.2,1823.0,6.166]
[1743272010136,3.0,1823.4,1823.1,1.4915]
[1743272010357,5.48456,1823.3,1823.0,6.166]
[1743272010530,5.48456,1823.3,1822.6,10.18]
[1743272010531,2.129467,1823.0,1822.6,10.18]
[1743272010730,3.18606047,1822.9,1822.6,5.48656]
[1743272011133,8.67187047,1822.9,1822.5,13.14442]
[1743272011658,3.0,1822.8,1822.4,5.48723]
[1743272011859,8.48617,1822.8,1822.4,11.65213]
[1743272012030,0.11580261,1822.7,1822.4,12.966493]
[1743272012547,0.11580261,1822.7,1822.5,5.48675]
[1743272012856,0.11580261,1822.7,1822.6,5.54152438]
[1743272013058,0.11580261,1822.7,1822.6,5.48666]
[1743272013253,3.0,1823.0,1822.7,5.48633]
[1743272013562,5.48582,1822.9,1822.7,1.097299]
[1743272013862,8.48565,1823.0,1822.6,5.48646]
[1743272014461,8.48565,1823.0,1822.6,10.97295]
[1743272015343,8.48565,1823.0,1822.7,5.48636]
[1743272015756,3.0,1823.0,1822.8,5.48598]
[1743272015932,3.0,1823.0,1822.7,1.5175]
[1743272016136,3.0,1823.0,1822.9,5.48576]
[1743272016438,5.48462,1823.3,1822.9,10.97152]
[1743272016763,3.0,1823.2,1822.9,10.97152]
[1743272017164,3.0,1823.2,1822.9,12.068672]
[1743272017737,3.0,1823.2,1822.9,6.582912]
[1743272017937,3.0,1823.2,1822.9,6.582742]
[1743272019167,8.48401,1823.5,1823.1,5.48512]
[1743272019371,8.48401,1823.5,1822.9,12.746852]
[1743272019372,8.48458,1823.3,1823.0,5.48545]
[1743272019547,13.96935,1823.3,1822.9,12.746852]
[1743272019748,13.96935,1823.3,1822.9,11.6497]
[1743272020043,0.55,1823.4,1823.0,5.48523]
[1743272020249,3.0,1823.3,1823.0,5.48523]
[1743272020449,3.0,1823.3,1823.1,5.48503]
[1743272020763,3.0,1823.3,1823.0,5.48523]
[1743272021154,10.02415746,1823.5,1823.1,5.48498]
[1743272021358,3.0,1823.3,1823.1,5.48498]
[1743272022372,8.4846,1823.3,1823.0,7.198727]
[1743272022572,8.4846,1823.3,1823.0,5.48523]
[1743272022870,3.0,1823.3,1823.0,10.9705]
[1743272023674,3.0,1823.3,1823.1,5.4849]
[1743272024341,3.0,1823.3,1823.0,5.48523]
[1743272025269,8.48456,1823.3,1823.0,5.48522]
[1743272025443,5.48456,1823.3,1823.0,5.48522]
[1743272026985,0.11373135,1823.2,1823.0,5.48522]
[1743272027161,0.11373135,1823.2,1823.0,7.198715]
[1743272027362,0.11373135,1823.2,1823.0,1.713495]
[1743272027566,0.11373135,1823.2,1823.0,5.4854]
[1743272029763,8.48428,1823.4,1823.0,10.97073]
[1743272029964,0.1151616,1823.3,1823.0,10.97073]
[1743272030169,0.1151616,1823.3,1823.1,5.4849]
[1743272030891,0.1151616,1823.3,1823.0,10.97079]
[1743272031251,3.1948,1823.2,1822.7,1.5175]
[1743272031451,5.48666,1822.6,1822.3,1.5814]
[1743272031695,5.48666,1822.6,1822.2,17.13432]
[1743272031899,0.11459287,1822.5,1822.2,11.64663]
[1743272032067,0.11459287,1822.5,1822.1,7.06953]
[1743272032068,0.11459287,1822.5,1822.1,7.06956]
[1743272032265,5.68209,1822.4,1822.1,11.64716]
[1743272032587,0.30939287,1822.4,1821.9,1.5814]
[1743272032757,5.48829,1822.1,1821.7,5.48924]
[1743272033082,0.11202792,1822.0,1821.9,5.48877]
[1743272033284,3.30330401,1822.0,1821.8,1.5814]
[1743272033488,4.01640649,1822.0,1821.5,7.7394]
[1743272033655,0.11202792,1821.9,1821.5,13.22916]
[1743272033852,8.87471609,1822.0,1821.5,13.22916]
[1743272034051,0.11202792,1821.8,1821.5,13.22916]
[1743272034288,8.68044609,1821.8,1821.5,6.158]
[1743272034453,0.10393497,1821.7,1821.5,6.158]
[1743272035261,0.10393497,1821.7,1821.3,11.64931]
[1743272035460,0.10393497,1821.7,1821.3,13.521469]
[1743272035655,0.10393497,1821.7,1821.4,5.49025]
[1743272035882,5.59349497,1821.7,1821.3,13.521469]
[1743272036083,0.10393497,1821.7,1821.4,5.49007]
[1743272036688,0.10393497,1821.7,1821.6,5.48967]
[1743272037088,3.0,1821.9,1821.6,5.48961]
[1743272037287,8.48889,1821.9,1821.5,5.4897]
[1743272037485,0.10393497,1821.8,1821.5,5.4897]
[1743272038189,8.48889,1821.9,1821.5,5.4897]
[1743272038190,8.48889,1821.9,1821.5,10.97954]
[1743272038389,0.10393497,1821.8,1821.5,10.97954]
[1743272039390,0.10393497,1821.8,1821.5,10.97957]
[1743272039593,0.10393497,1821.8,1821.5,5.4897]
[1743272039792,6.45230747,1821.8,1821.4,11.64816]
[1743272040197,5.48943,1821.7,1821.4,6.158]
[1743272040394,5.48995,1821.6,1821.2,1.5814]
[1743272040560,0.10393497,1821.5,1821.0,1.5814]
[1743272040765,8.68429,1821.7,1821.3,5.49038]
[1743272040981,8.68429,1821.7,1821.2,10.98165]
[1743272040982,5.48978,1821.6,1821.2,10.98165]
[1743272041189,5.48968,1821.6,1821.2,5.49077]
[1743272041394,5.48968,1821.6,1821.2,10.98152]
[1743272041966,5.48968,1821.6,1821.2,5.49075]
[1743272042895,5.48968,1821.6,1821.2,5.4907]
[1743272043476,5.48968,1821.6,1821.3,5.49055]
[1743272045101,6.34972216,1821.6,1821.0,1.5814]
[1743272045320,6.34972216,1821.6,1821.2,5.49071]
[1743272045476,3.0,1821.9,1821.4,5.49028]